fUSD/lending_fUSD_20240718
["ID","MTS","AMOUNT","RATE_DAILY","PERIOD"]
[332558854,1721293936416,-500.0,0.00036178,14]
[332558855,1721293936450,-500.0,0.00036178,14]
[332558856,1721293936484,-500.0,0.00036178,14]
[332558857,1721293936518,-500.0,0.00036178,14]
[332558858,1721293936552,-500.0,0.00036178,14]
[332558859,1721293936586,-500.0,0.00036178,14]
[332558860,1721293936621,-522.86,0.00036178,14]
[332558861,1721293936657,-500.0,0.00036178,14]
[332558862,1721293936690,-500.0,0.00036178,14]
[332558863,1721293936723,-500.0,0.00036178,14]
[332558864,1721293936758,-500.0,0.00036178,14]
[332558865,1721293936792,-500.0,0.00036178,14]
[332558866,1721293936827,-500.0,0.00036178,14]
[332558867,1721293936859,-500.0,0.00036178,14]
[332558868,1721293936894,-500.0,0.00036178,14]
[332558869,1721293936930,-500.0,0.00036178,14]
[332558870,1721293936965,-500.0,0.00036178,14]
[332558871,1721293936998,-500.0,0.00036178,14]
[332558872,1721293937031,-500.0,0.00036178,14]
[332558873,1721293937063,-500.0,0.00036178,14]
[332558874,1721293937097,-500.0,0.00036178,14]
[332558875,1721293937130,-500.0,0.00036178,14]
[332558876,1721293937163,-500.0,0.00036178,14]
[332558877,1721293937195,-500.0,0.00036178,14]
[332558878,1721293937228,-184.31,0.00036178,14]
[332558879,1721293937261,-1776.21,0.00036178,120]
[332558880,1721293937294,-1776.21,0.00036178,120]
[332558881,1721293937329,-1776.21,0.00036178,120]
[332558882,1721293937363,-1776.21,0.00036178,120]
[332558883,1721293937397,-1776.21,0.00036178,120]
[332558884,1721293937431,-1776.21,0.00036178,120]
[332558885,1721293937465,-1776.21,0.00036178,120]
[332558886,1721293937501,-1776.21,0.00036178,120]
[332558887,1721293937536,-500.0,0.00036178,14]
[332558888,1721293937573,-1776.21,0.00036178,120]
[332558889,1721293937611,-345.52,0.00036178,14]
[332558890,1721293937646,-1776.21,0.00036178,120]
[332558891,1721293937681,-1776.21,0.00036178,120]
[332558892,1721293937715,-1776.21,0.00036178,120]
[332558893,1721293937748,-1776.21,0.00036178,120]
[332558894,1721293937782,-1776.21,0.00036178,120]
[332558895,1721293937817,-1776.21,0.00036178,120]
[332558896,1721293937853,-1776.21,0.00036178,120]
[332558897,1721293937887,-1776.21,0.00036178,120]
[332558898,1721293937925,-1776.21,0.00036178,120]
[332558899,1721293937962,-1776.24863988,0.00036178,120]
[332558900,1721293937999,-500.0,0.00036178,14]
[332558901,1721293938035,-500.0,0.00036178,14]
[332558902,1721293938075,-500.0,0.00036178,14]
[332558903,1721293938112,-377.27893943,0.00036178,14]
[332558904,1721293938148,-500.0,0.00036178,14]
[332558905,1721293938184,-500.0,0.00036178,14]
[332558906,1721293938222,-500.0,0.00036178,14]
[332558907,1721293938258,-500.0,0.00036178,14]
[332558908,1721293938295,-500.0,0.00036178,14]
[332558909,1721293938332,-500.0,0.00036178,14]
[332558910,1721293938366,-433.32,0.00036178,14]
[332558911,1721293938400,-500.0,0.00036178,14]
[332558912,1721293938436,-500.0,0.00036178,14]
[332558913,1721293938471,-500.0,0.00036178,14]
[332558914,1721293938504,-500.0,0.00036178,14]
[332558915,1721293938541,-500.0,0.00036178,14]
[332558916,1721293938576,-500.0,0.00036178,14]
[332558917,1721293938613,-500.0,0.00036178,14]
[332558918,1721293938648,-552.25,0.00036178,14]
[332558919,1721293938681,-500.0,0.00036178,14]
[332558920,1721293938714,-373.97,0.00036178,14]
[332558921,1721293938749,-500.0,0.00036178,14]
[332558922,1721293938783,-500.0,0.00036178,14]
[332558923,1721293938817,-500.0,0.00036178,14]
[332558924,1721293938854,-500.0,0.00036178,14]
[332558925,1721293938889,-502.31,0.00036178,14]
[332558926,1721293939071,-385.86,0.00036178,14]
[332558927,1721293939116,-500.0,0.00036178,14]
[332558928,1721293939152,-500.0,0.00036178,14]
[332558929,1721293939187,-500.0,0.00036178,14]
[332558930,1721293939221,-500.0,0.00036178,14]
[332558931,1721293939256,-500.0,0.00036178,14]
[332558932,1721293939292,-500.0,0.00036178,14]
[332558933,1721293939328,-376.48,0.00036178,14]
[332558934,1721293939363,-500.0,0.00036178,14]
[332558935,1721293939399,-505.6,0.00036178,14]
[332558936,1721293939437,-500.0,0.00036178,14]
[332558937,1721293939472,-500.0,0.00036178,14]
[332558938,1721293939506,-500.0,0.00036178,14]
[332558939,1721293939540,-500.0,0.00036178,14]
[332558940,1721293939576,-500.0,0.00036178,14]
[332558941,1721293939612,-336.56,0.00036178,14]
[332558942,1721293939648,-463.56,0.00036178,14]
[332558943,1721293939682,-500.0,0.00036178,14]
[332558944,1721293939717,-500.0,0.00036178,14]
[332558945,1721293939751,-266.58,0.00036178,14]
[332558946,1721293939786,-500.0,0.00036178,14]
[332558947,1721293939821,-305.35,0.00036178,14]
[332558948,1721293939856,-619.7,0.00036178,14]
[332558949,1721293939889,-500.0,0.00036178,14]
[332558950,1721293939926,-500.0,0.00036178,14]
[332558951,1721293939962,-500.0,0.00036178,14]
[332558952,1721293939999,-500.0,0.00036178,14]
[332558953,1721293940032,-500.0,0.00036178,14]
[332558954,1721293940066,-500.0,0.00036178,14]
[332558955,1721293940099,-500.0,0.00036178,14]
[332558956,1721293940132,-349.06,0.00036178,14]
[332558957,1721293940167,-280.50106173,0.00036178,14]
[332558958,1721293940203,-503.76,0.00036178,14]
[332558959,1721293940239,-503.76,0.00036178,14]
[332558960,1721293940275,-503.76,0.00036178,14]
[332558961,1721293940312,-503.76,0.00036178,14]
[332558962,1721293940348,-503.76,0.00036178,14]
[332558963,1721293940383,-503.76,0.00036178,14]
[332558964,1721293940417,-503.76,0.00036178,14]
[332558965,1721293940452,-503.76,0.00036178,14]
[332558966,1721293940488,-503.76,0.00036178,14]
[332558967,1721293940524,-503.76,0.00036178,14]
[332558968,1721293940559,-503.76,0.00036178,14]
[332558969,1721293940594,-503.76,0.00036178,14]
[332558970,1721293940628,-503.76,0.00036178,14]
[332558971,1721293940664,-503.76,0.00036178,14]
[332558972,1721293940698,-503.76,0.00036178,14]
[332558973,1721293940736,-503.76,0.00036178,14]
[332558974,1721293940770,-541.2,0.00036178,14]
[332558975,1721293940804,-500.0,0.00036178,14]
[332558976,1721293940837,-503.76,0.00036178,14]
[332558977,1721293940870,-500.0,0.00036178,14]
[332558978,1721293940904,-503.76,0.00036178,14]
[332558979,1721293940940,-500.0,0.00036178,14]
[332558980,1721293940973,-503.89,0.00036178,14]
[332558981,1721293941007,-500.0,0.00036178,14]
[332558982,1721293941040,-500.0,0.00036178,14]
[332558983,1721293941076,-500.0,0.00036178,14]
[332558984,1721293941110,-500.0,0.00036178,14]
[332558985,1721293941144,-500.0,0.00036178,14]
[332558986,1721293941180,-638.44,0.00036178,14]
[332558987,1721293941213,-500.0,0.00036178,14]
[332558988,1721293941246,-500.0,0.00036178,14]
[332558989,1721293941279,-500.0,0.00036178,14]
[332558990,1721293941313,-295.54,0.00036178,14]
[332558991,1721293941346,-500.0,0.00036178,14]
[332558992,1721293941380,-500.0,0.00036178,14]
[332558993,1721293941414,-500.0,0.00036178,14]
[332558994,1721293941447,-500.0,0.00036178,14]
[332558995,1721293941479,-396.92,0.00036178,14]
[332558996,1721293941511,-500.0,0.00036178,14]
[332558997,1721293941545,-500.0,0.00036178,14]
[332558998,1721293941579,-500.0,0.00036178,14]
[332558999,1721293941612,-365.72,0.00036178,14]
[332559000,1721293941644,-320.08604483,0.00036178,14]
[332559001,1721293941677,-500.0,0.00036178,14]
[332559002,1721293941710,-500.0,0.00036178,14]
[332559003,1721293941742,-500.0,0.00036178,14]
[332559004,1721293941775,-238.63,0.00036178,14]
[332559005,1721293941808,-500.0,0.00036178,14]
[332559006,1721293941842,-500.0,0.00036178,14]
[332559007,1721293941875,-500.0,0.00036178,14]
[332559008,1721293941907,-500.0,0.00036178,14]
[332559009,1721293941947,-500.0,0.00036178,14]
[332559010,1721293941979,-500.0,0.00036178,14]
[332559011,1721293942012,-500.0,0.00036178,14]
[332559012,1721293942045,-500.0,0.00036178,14]
[332559013,1721293942078,-500.0,0.00036178,14]
[332559014,1721293942110,-500.0,0.00036178,14]
[332559015,1721293942142,-500.0,0.00036178,14]
[332559016,1721293942174,-500.0,0.00036178,14]
[332559017,1721293942206,-500.0,0.00036178,14]
[332559018,1721293942240,-500.0,0.00036178,14]
[332559019,1721293942274,-500.0,0.00036178,14]
[332559020,1721293942309,-500.0,0.00036178,14]
[332559021,1721293942346,-500.0,0.00036178,14]
[332559022,1721293942380,-500.0,0.00036178,14]
[332559023,1721293942415,-434.31638605,0.00036178,14]
[332559024,1721293943401,-603.45363364,0.00017264,2]
[332559025,1721293943449,-1243.68996812,0.00017264,2]
[332559026,1721293943459,-1500.0,0.00017265,2]
[332559027,1721293943469,-300.0,0.00018068,2]
[332559028,1721293943479,-405.0,0.00018069,2]
[332559029,1721293943489,-46677.21374961,0.00018069,2]
[332559030,1721293943498,-185.96,0.0001807,2]
[332559031,1721293943508,-155.96440749,0.00018169,2]
[332559032,1721293943518,-159.82727271,0.00018169,2]
[332559033,1721293943528,-2086.67374751,0.00018169,2]
[332559034,1721293943537,-380.54643038,0.0001817,2]
[332559035,1721293943547,-648.71792982,0.0001817,2]
[332559036,1721293943557,-476.63847977,0.0001817,2]
[332559037,1721293943567,-197.39644979,0.0001817,2]
[332559038,1721293943576,-462.35092215,0.0001817,2]
[332559039,1721293943587,-3040.39,0.00018174,2]
[332559040,1721293943598,-499.99,0.00018179,2]
[332559041,1721293943608,-1800.02,0.00018182,2]
[332559042,1721293943617,-379.57,0.00019,2]
[332559043,1721293943627,-299.99,0.00019,4]
[332559044,1721293943637,-200.0,0.00019355,2]
[332559045,1721293943647,-2321.26,0.00019357,2]
[332559046,1721293943656,-500.0,0.00019404,2]
[332559047,1721293943667,-250.0,0.0001945,2]
[332559048,1721293943677,-3755.56,0.00019475,2]
[332559049,1721293943687,-5000.0,0.00019505,2]
[332559050,1721293943697,-26443.5,0.00019506,2]
[332559051,1721293943707,-195.2,0.00019509,2]
[332559052,1721293943717,-283.14,0.00019547,2]
[332559053,1721293943726,-20000.0,0.00019547,2]
[332559054,1721293943736,-420.0,0.00019713,2]
[332559055,1721293943745,-8813.14,0.00019774,2]
[332559056,1721293943755,-167.0,0.00019944,2]
[332559057,1721293943764,-240.0,0.0002003,2]
[332559058,1721293943774,-1000.0,0.00020045,2]
[332559059,1721293943784,-33214.69381014,0.00020224,2]
[332559060,1721293943794,-3272.80559963,0.00020291,2]
[332559061,1721293943803,-20423.73,0.00020292,2]
[332559062,1721293943813,-600.0,0.00020324,2]
[332559063,1721293943823,-163.7,0.00020324,2]
[332559064,1721293943832,-185.96,0.00020334,2]
[332559065,1721293943841,-1000.0,0.00020408,2]
[332559066,1721293943851,-981.87,0.00020488,2]
[332559067,1721293943861,-239.2,0.00020848,2]
[332559068,1721293943872,-3973.24754201,0.00020876,2]
[332559069,1721293943882,-1000.0,0.00020877,2]
[332559070,1721293943891,-159.71338224,0.00020914,2]
[332559071,1721293943901,-800.0,0.00021,2]
[332559072,1721293943912,-300.0,0.00021257,2]
[332559073,1721293943927,-1000.0,0.00021258,2]
[332559074,1721293943938,-500.0,0.00021297,2]
[332559075,1721293943948,-500.0,0.00021306,2]
[332559076,1721293943960,-500.0,0.00021314,2]
[332559077,1721293943970,-155.0,0.00021322,2]
[332559078,1721293943979,-155.0,0.00021322,2]
[332559079,1721293943988,-500.0,0.00021323,2]
[332559080,1721293943999,-500.0,0.00021332,2]
[332559081,1721293944009,-500.0,0.00021341,2]
[332559082,1721293944019,-649.90612897,0.00021349,2]
[332559083,1721293944029,-227.41308538,0.00021349,2]
[332559084,1721293944038,-500.0,0.0002135,2]
[332559085,1721293944048,-717.20761481,0.00021357,2]
[332559086,1721293944058,-500.0,0.00021358,2]
[332559087,1721293944070,-188.43960679,0.00021366,2]
[332559088,1721293944079,-500.0,0.00021367,2]
[332559089,1721293944090,-500.0,0.00021376,2]
[332559090,1721293944099,-500.0,0.00021385,2]
[332559091,1721293944108,-500.0,0.00021394,2]
[332559092,1721293944118,-180.0,0.00021397,2]
[332559093,1721293944128,-587.0,0.00021507,2]
[332559094,1721293944137,-168.83,0.00021519,2]
[332559095,1721293944146,-7895.1267,0.00021607,2]
[332559096,1721293944156,-153.32,0.00021644,2]
[332559097,1721293944166,-163.7,0.00021679,2]
[332559098,1721293944175,-1096.504,0.00021684,2]
[332559099,1721293944184,-754.789,0.00021684,2]
[332559100,1721293944193,-170.14,0.00021688,2]
[332559101,1721293944203,-33035.0,0.00021698,2]
[332559102,1721293944212,-1084.05411448,0.00021747,2]
[332559103,1721293944221,-300.0,0.00021773,2]
[332559104,1721293944230,-1000.0,0.00021817,2]
[332559105,1721293944239,-5000.0,0.00021817,2]
[332559106,1721293944248,-463.1942,0.00021817,2]
[332559107,1721293944258,-670.6119,0.00021817,2]
[332559108,1721293944267,-274.501,0.00021817,2]
[332559109,1721293944276,-7500.0,0.00021817,2]
[332559110,1721293944286,-601.57854382,0.00021906,2]
[332559111,1721293944295,-1908.16812955,0.00021907,4]
[332559112,1721293944305,-500.0,0.00021917,2]
[332559113,1721293944315,-500.0,0.00021917,2]
[332559114,1721293944325,-500.0,0.00021917,2]
[332559115,1721293944334,-200.0,0.00021917,2]
[332559116,1721293944343,-500.0,0.00021917,2]
[332559117,1721293944352,-302.05424433,0.00021917,2]
[332559118,1721293944361,-500.0,0.00021917,2]
[332559119,1721293944371,-500.0,0.00021917,2]
[332559120,1721293944380,-500.0,0.00021917,2]
[332559121,1721293944388,-500.0,0.00021917,2]
[332559122,1721293944397,-500.0,0.00021917,2]
[332559123,1721293944407,-500.0,0.00021917,2]
[332559124,1721293944416,-500.0,0.00021917,2]
[332559125,1721293944426,-500.0,0.00021917,2]
[332559126,1721293944435,-500.0,0.00021917,2]
[332559127,1721293944444,-500.0,0.00021917,2]
[332559128,1721293944453,-504.15045754,0.00021917,2]
[332559129,1721293944462,-500.0,0.00021917,2]
[332559130,1721293944471,-407.57625413,0.00021917,2]
[332559131,1721293944481,-500.0,0.00021917,2]
[332559132,1721293944490,-500.0,0.00021917,2]
[332559133,1721293944500,-500.0,0.00021917,2]
[332559134,1721293944509,-186.25859512,0.00021917,2]
[332559135,1721293944518,-500.0,0.00021917,2]
[332559136,1721293944527,-500.0,0.00021917,2]
[332559137,1721293944536,-500.0,0.00021917,2]
[332559138,1721293944547,-255.8270806,0.00021917,2]
[332559139,1721293944558,-500.0,0.00021917,2]
[332559140,1721293944567,-500.0,0.00021917,2]
[332559141,1721293944579,-500.0,0.00021917,2]
[332559142,1721293944590,-500.0,0.00021917,2]
[332559143,1721293944600,-500.0,0.00021917,2]
[332559144,1721293944611,-489.15673472,0.00021917,2]
[332559145,1721293944621,-500.0,0.00021917,2]
[332559146,1721293944630,-500.0,0.00021917,2]
[332559147,1721293944639,-500.0,0.00021917,2]
[332559148,1721293944650,-500.0,0.00021917,2]
[332559149,1721293944659,-500.0,0.00021917,2]
[332559150,1721293944668,-500.0,0.00021917,2]
[332559151,1721293944678,-500.0,0.00021917,2]
[332559152,1721293944687,-500.0,0.00021917,2]
[332559153,1721293944697,-500.0,0.00021917,2]
[332559154,1721293944708,-500.0,0.00021917,2]
[332559155,1721293944718,-500.0,0.00021917,2]
[332559156,1721293944726,-500.0,0.00021917,2]
[332559157,1721293944735,-500.0,0.00021917,2]
[332559158,1721293944745,-500.0,0.00021917,2]
[332559159,1721293944754,-500.0,0.00021917,2]
[332559160,1721293944763,-500.0,0.00021917,2]
[332559161,1721293944773,-496.66738228,0.00021917,2]
[332559162,1721293944784,-500.0,0.00021917,2]
[332559163,1721293944794,-500.0,0.00021917,2]
[332559164,1721293944805,-500.0,0.00021917,2]
[332559165,1721293944815,-500.0,0.00021917,2]
[332559166,1721293944824,-500.0,0.00021917,2]
[332559167,1721293944834,-500.0,0.00021917,2]
[332559168,1721293944844,-500.0,0.00021917,2]
[332559169,1721293944855,-500.0,0.00021917,2]
[332559170,1721293944865,-500.0,0.00021917,2]
[332559171,1721293944876,-500.0,0.00021917,2]
[332559172,1721293944887,-500.0,0.00021917,2]
[332559173,1721293944897,-500.0,0.00021917,2]
[332559174,1721293944907,-500.0,0.00021917,2]
[332559175,1721293944917,-500.0,0.00021917,2]
[332559176,1721293944929,-500.0,0.00021917,2]
[332559177,1721293944939,-500.0,0.00021917,2]
[332559178,1721293944949,-500.0,0.00021917,2]
[332559179,1721293944959,-500.0,0.00021917,2]
[332559180,1721293944969,-477.46334384,0.00021917,2]
[332559181,1721293944980,-500.0,0.00021917,2]
[332559182,1721293944991,-500.0,0.00021917,2]
[332559183,1721293945003,-500.0,0.00021917,2]
[332559184,1721293945013,-500.0,0.00021917,2]
[332559185,1721293945024,-500.0,0.00021917,2]
[332559186,1721293945034,-500.0,0.00021917,2]
[332559187,1721293945046,-500.0,0.00021917,2]
[332559188,1721293945056,-500.0,0.00021917,2]
[332559189,1721293945066,-500.0,0.00021917,2]
[332559190,1721293945075,-500.0,0.00021917,2]
[332559191,1721293945087,-500.0,0.00021917,2]
[332559192,1721293945097,-500.0,0.00021917,2]
[332559193,1721293945106,-500.0,0.00021917,2]
[332559194,1721293945116,-500.0,0.00021917,2]
[332559195,1721293945126,-500.0,0.00021917,2]
[332559196,1721293945137,-500.0,0.00021917,2]
[332559197,1721293945149,-500.0,0.00021917,2]
[332559198,1721293945159,-356.1157917,0.00021917,2]
[332559199,1721293945169,-500.0,0.00021917,2]
[332559200,1721293945179,-500.0,0.00021917,2]
[332559201,1721293945189,-500.0,0.00021917,2]
[332559202,1721293945199,-500.0,0.00021917,2]
[332559203,1721293945208,-500.0,0.00021917,2]
[332559204,1721293945218,-318.08665389,0.00021917,2]
[332559205,1721293945227,-500.0,0.00021917,2]
[332559206,1721293945236,-500.0,0.00021917,2]
[332559207,1721293945245,-500.0,0.00021917,2]
[332559208,1721293945255,-500.0,0.00021917,2]
[332559209,1721293945264,-500.0,0.00021917,2]
[332559210,1721293945273,-500.0,0.00021917,2]
[332559211,1721293945282,-500.0,0.00021917,2]
[332559212,1721293945291,-26.07506164,0.00021917,2]
[332559213,1721293945307,-473.92493836,0.00021917,2]
[332559214,1721293945317,-500.0,0.00021917,2]
[332559215,1721293945326,-290.99719312,0.00021917,2]
[332559216,1721293945337,-209.00280688,0.00021917,2]
[332559217,1721293945347,-500.0,0.00021917,2]
[332559218,1721293945356,-94.68904631,0.00021917,2]
[332559219,1721293945411,-155.0,0.00021305,2]
[332559220,1721293945420,-405.31095369,0.00021917,2]
[332559221,1721293945430,-500.0,0.00021917,2]
[332559222,1721293945439,-481.68044651,0.00021917,2]
[332559223,1721293945450,-18.31955349,0.00021917,2]
[332559224,1721293945459,-500.0,0.00021917,2]
[332559225,1721293945468,-500.0,0.00021917,2]
[332559226,1721293945478,-500.0,0.00021917,2]
[332559227,1721293945488,-500.0,0.00021917,2]
[332559228,1721293945497,-196.31460872,0.00021917,2]
[332559229,1721293945507,-500.0,0.00021917,2]
[332559230,1721293945516,-500.0,0.00021917,2]
[332559231,1721293945526,-500.0,0.00021917,2]
[332559232,1721293945536,-500.0,0.00021917,2]
[332559233,1721293945546,-500.0,0.00021917,2]
[332559234,1721293945555,-500.0,0.00021917,2]
[332559235,1721293945564,-386.57006319,0.00021917,2]
[332559236,1721293945573,-500.0,0.00021917,2]
[332559237,1721293945583,-500.0,0.00021917,2]
[332559238,1721293945593,-500.0,0.00021917,2]
[332559239,1721293945602,-357.0,0.00021917,2]
[332559240,1721293945612,-500.0,0.00021917,2]
[332559241,1721293945621,-500.0,0.00021917,2]
[332559242,1721293945630,-500.0,0.00021917,2]
[332559243,1721293945640,-500.0,0.00021917,2]
[332559244,1721293945651,-500.0,0.00021917,2]
[332559245,1721293945660,-500.0,0.00021917,2]
[332559246,1721293945670,-500.0,0.00021917,2]
[332559247,1721293945680,-500.0,0.00021917,2]
[332559248,1721293945691,-500.0,0.00021917,2]
[332559249,1721293945702,-500.0,0.00021917,2]
[332559250,1721293945712,-500.0,0.00021917,2]
[332559251,1721293945722,-500.0,0.00021917,2]
[332559252,1721293945734,-500.0,0.00021917,2]
[332559253,1721293945744,-500.0,0.00021917,2]
[332559254,1721293945757,-262.68697984,0.00021917,2]
[332559255,1721293945768,-500.0,0.00021917,2]
[332559256,1721293945779,-500.0,0.00021917,2]
[332559257,1721293945789,-500.0,0.00021917,2]
[332559258,1721293945799,-500.0,0.00021917,2]
[332559259,1721293945809,-471.99346599,0.00021917,2]
[332559260,1721293945818,-500.0,0.00021917,2]
[332559261,1721293945828,-500.0,0.00021917,2]
[332559262,1721293945838,-500.0,0.00021917,2]
[332559263,1721293945848,-500.0,0.00021917,2]
[332559264,1721293945859,-500.0,0.00021917,2]
[332559265,1721293945870,-500.0,0.00021917,2]
[332559266,1721293945879,-500.0,0.00021917,2]
[332559267,1721293945889,-500.0,0.00021917,2]
[332559268,1721293946038,-500.0,0.00021917,2]
[332559269,1721293946049,-500.0,0.00021917,2]
[332559270,1721293946059,-500.0,0.00021917,2]
[332559271,1721293946068,-500.0,0.00021917,2]
[332559272,1721293946077,-500.0,0.00021917,2]
[332559273,1721293946087,-500.0,0.00021917,2]
[332559274,1721293946097,-500.0,0.00021917,2]
[332559275,1721293946108,-500.0,0.00021917,2]
[332559276,1721293946120,-500.0,0.00021917,2]
[332559277,1721293946129,-500.0,0.00021917,2]
[332559278,1721293946139,-500.0,0.00021917,2]
[332559279,1721293946148,-500.0,0.00021917,2]
[332559280,1721293946157,-500.0,0.00021917,2]
[332559281,1721293946167,-500.0,0.00021917,2]
[332559282,1721293946177,-500.0,0.00021917,2]
[332559283,1721293946186,-500.0,0.00021917,2]
[332559284,1721293946195,-500.0,0.00021917,2]
[332559285,1721293946205,-500.0,0.00021917,2]
[332559286,1721293946214,-500.0,0.00021917,2]
[332559287,1721293946223,-500.0,0.00021917,2]
[332559288,1721293946233,-500.0,0.00021917,2]
[332559289,1721293946243,-500.0,0.00021917,2]
[332559290,1721293946252,-500.0,0.00021917,2]
[332559291,1721293946261,-500.0,0.00021917,2]
[332559292,1721293946273,-500.0,0.00021917,2]
[332559293,1721293946282,-500.0,0.00021917,2]
[332559294,1721293946292,-500.0,0.00021917,2]
[332559295,1721293946301,-500.0,0.00021917,2]
[332559296,1721293946311,-500.0,0.00021917,2]
[332559297,1721293946321,-500.0,0.00021917,2]
[332559298,1721293946330,-500.0,0.00021917,2]
[332559299,1721293946340,-500.0,0.00021917,2]
[332559300,1721293946349,-500.0,0.00021917,2]
[332559301,1721293946358,-500.0,0.00021917,2]
[332559302,1721293946368,-500.0,0.00021917,2]
[332559303,1721293946377,-500.0,0.00021917,2]
[332559304,1721293946388,-500.0,0.00021917,2]
[332559305,1721293946397,-500.0,0.00021917,2]
[332559306,1721293946407,-500.0,0.00021917,2]
[332559307,1721293946417,-416.95567891,0.00021917,2]
[332559308,1721293946427,-635.49,0.00021917,2]
[332559309,1721293946437,-500.0,0.00021917,2]
[332559310,1721293946446,-500.0,0.00021917,2]
[332559311,1721293946456,-500.0,0.00021917,2]
[332559312,1721293946466,-443.89432109,0.00021917,2]
[332559313,1721293946476,-500.0,0.00021917,2]
[332559314,1721293946486,-500.0,0.00021917,2]
[332559315,1721293946495,-500.0,0.00021917,2]
[332559316,1721293946505,-500.0,0.00021917,2]
[332559317,1721293946514,-500.0,0.00021917,2]
[332559318,1721293946524,-500.0,0.00021917,2]
[332559319,1721293946534,-500.0,0.00021917,2]
[332559320,1721293946543,-500.0,0.00021917,2]
[332559321,1721293946553,-500.0,0.00021917,2]
[332559322,1721293946564,-500.0,0.00021917,2]
[332559323,1721293946573,-500.0,0.00021917,2]
[332559324,1721293946583,-500.0,0.00021917,2]
[332559325,1721293946594,-500.0,0.00021917,2]
[332559326,1721293946603,-500.0,0.00021917,2]
[332559327,1721293946612,-500.0,0.00021917,2]
[332559328,1721293946622,-500.0,0.00021917,2]
[332559329,1721293946631,-500.0,0.00021917,2]
[332559330,1721293946641,-500.0,0.00021917,2]
[332559331,1721293946650,-500.0,0.00021917,2]
[332559332,1721293946660,-500.0,0.00021917,2]
[332559333,1721293946669,-500.0,0.00021917,2]
[332559334,1721293946678,-500.0,0.00021917,2]
[332559335,1721293946688,-500.0,0.00021917,2]
[332559336,1721293946698,-500.0,0.00021917,2]
[332559337,1721293946709,-500.0,0.00021917,2]
[332559338,1721293946718,-500.0,0.00021917,2]
[332559339,1721293946727,-500.0,0.00021917,2]
[332559340,1721293946737,-500.0,0.00021917,2]
[332559341,1721293946746,-500.0,0.00021917,2]
[332559342,1721293946756,-500.0,0.00021917,2]
[332559343,1721293946765,-186.34981001,0.00021917,2]
[332559344,1721293946775,-500.0,0.00021917,2]
[332559345,1721293946784,-500.0,0.00021917,2]
[332559346,1721293946794,-500.0,0.00021917,2]
[332559347,1721293946803,-500.0,0.00021917,2]
[332559348,1721293946815,-377.99882306,0.00021917,2]
[332559349,1721293947107,-122.00117694,0.00021917,2]
[332559350,1721293947117,-456.81928463,0.00021917,2]
[332559351,1721293947127,-500.0,0.00021917,2]
[332559352,1721293947136,-185.61511836,0.00021917,2]
[332559353,1721293947148,-314.38488164,0.00021917,2]